bitfinex-derivatives/quotes_ETHF0:USTF0_20250105
["timestamp","ask_amount","ask_price","bid_price","bid_amount"]
[1736110943553,0.24762,3635.1,3635.0,1.4906]
[1736110944756,0.24762,3635.1,3635.0,0.4156]
[1736110945260,0.24763,3635.0,3634.9,2.21194061]
[1736110949365,0.4328,3635.3,3634.9,2.21194061]
[1736110949556,0.24762,3635.1,3634.9,2.21194061]
[1736110950652,3.6495,3635.4,3634.9,2.21194061]
[1736110950859,3.6495,3635.4,3635.2,2.21194061]
[1736110950860,3.2078,3635.4,3635.2,2.21194061]
[1736110951158,3.2078,3635.4,3635.3,0.421]
[1736110952661,0.2476,3635.5,3635.3,0.421]
[1736110952861,4.068,3635.7,3635.3,0.421]
[1736110953165,4.068,3635.7,3635.2,2.21194061]
[1736110953461,0.2476,3635.3,3635.2,2.21194061]
[1736110953660,0.2476,3635.4,3635.2,2.21194061]
[1736110955266,4.068,3635.7,3635.2,2.21194061]
[1736110955466,4.068,3635.7,3635.2,2.45955061]
[1736110955467,0.24759,3635.5,3635.2,2.45955061]
[1736110955862,4.068,3635.7,3635.2,2.21194061]
[1736110956068,0.2476,3635.4,3635.2,2.21194061]
[1736110956865,4.068,3635.7,3635.2,2.21194061]
[1736110957065,0.2476,3635.3,3635.2,2.21194061]
[1736110957968,0.2476,3635.4,3635.2,2.21194061]
[1736110959269,4.068,3635.7,3635.2,2.21194061]
[1736110959471,0.2476,3635.4,3635.2,2.21194061]
[1736110959865,4.068,3635.7,3635.2,2.21194061]
[1736110960066,0.2476,3635.4,3635.2,2.21194061]
[1736110961871,0.2476,3635.4,3635.2,2.45955061]
[1736110962174,3.2078,3635.6,3635.2,2.21194061]
[1736110962671,3.2078,3635.6,3635.5,2.45953061]
[1736110964674,3.45538,3635.6,3635.5,2.45953061]
[1736110964877,3.2078,3635.6,3635.5,2.45953061]
[1736110966070,3.45538,3635.6,3635.5,2.45953061]
[1736110969278,3.45538,3635.6,3635.5,2.21194061]
[1736110969671,3.45538,3635.6,3635.5,3.05884061]
[1736110970570,3.2078,3635.6,3635.3,1.075]
[1736110970774,0.2476,3635.4,3635.3,1.075]
[1736110972584,3.4554,3635.4,3635.3,1.075]
[1736110975089,0.2476,3635.4,3635.3,1.075]
[1736110975383,5.6063135,3635.4,3635.3,1.075]
[1736110977280,2.3985135,3635.4,3635.3,1.075]
[1736110978189,2.3985135,3635.4,3635.2,0.24761]
[1736110978889,2.3985135,3635.4,3635.1,0.24761]
[1736110979089,2.1509135,3635.4,3635.1,0.24761]
[1736110979292,0.2476,3635.3,3635.1,0.24761]
[1736110979489,0.2476,3635.3,3635.0,1.075]
[1736110979690,0.2476,3635.3,3635.0,1.32262]
[1736110980486,0.2476,3635.3,3635.0,1.075]
[1736110980688,2.3985135,3635.3,3635.1,0.24762]
[1736110981385,2.1509135,3635.3,3635.1,0.24762]
[1736110983184,2.1509135,3635.3,3635.1,4.55986875]
[1736110983685,2.3985235,3635.3,3635.1,4.55986875]
[1736110983891,2.3985235,3635.3,3635.1,4.31224875]
[1736110984092,2.1509135,3635.2,3635.1,4.31224875]
[1736110984495,2.1509135,3635.2,3635.1,4.55986875]
[1736110986797,2.1509135,3635.2,3635.0,7.54337313]
[1736110987095,0.24762,3635.1,3635.0,6.46837313]
[1736110988392,3.47399025,3635.1,3635.0,4.33044889]
[1736110989496,3.88679541,3635.1,3635.0,4.33044889]
[1736110990988,3.88679541,3635.1,3634.9,4.75234889]
[1736110990989,0.66042516,3635.1,3634.9,4.75234889]
[1736110991194,0.4354,3635.0,3634.9,4.75234889]
[1736110991907,0.4354,3635.0,3634.9,4.99997889]
[1736110992297,3.65867796,3635.0,3634.9,0.66953]
[1736110993494,0.4354,3635.0,3634.9,0.66953]
[1736110995100,0.4354,3635.0,3634.9,1.66885995]
[1736110999511,0.4354,3635.0,3634.9,0.66953]
[1736110999704,0.4354,3635.0,3634.9,1.66885995]
[1736111000606,3.65867796,3635.0,3634.9,5.99934107]
[1736111003013,0.4354,3635.0,3634.9,5.99934107]
[1736111005017,0.4354,3635.0,3634.9,5.75171107]
[1736111005914,3.65867796,3635.0,3634.9,5.75171107]
[1736111006222,3.65867796,3635.0,3634.9,4.75238112]
[1736111006419,3.65867796,3635.0,3634.9,5.00001112]
[1736111008415,3.65867796,3635.0,3634.9,4.33048112]
[1736111008416,3.90630796,3635.0,3634.9,4.33048112]
[1736111008619,3.65867796,3635.0,3634.9,4.33048112]
[1736111009118,3.65867796,3635.0,3634.9,4.57811112]
[1736111009515,3.65867796,3635.0,3634.9,0.24763]
[1736111010329,3.22327796,3635.0,3634.9,1.24695995]
[1736111010614,3.22327796,3635.1,3635.0,0.24763]
[1736111011822,3.22327796,3635.2,3635.1,0.24762]
[1736111012615,0.41280372,3635.2,3635.1,0.24762]
[1736111014020,0.24761,3635.2,3635.1,0.24762]
[1736111014221,0.24761,3635.2,3634.9,5.76681107]
[1736111014222,4.96224072,3635.3,3635.2,0.24761]
[1736111016120,0.24761,3635.2,3635.1,0.24762]
[1736111016323,4.96224072,3635.3,3635.2,0.24761]
[1736111016925,4.71463072,3635.3,3635.0,4.33048112]
[1736111017122,4.96224072,3635.3,3635.2,0.24761]
[1736111017325,0.24761,3635.2,3635.1,0.24761]
[1736111017719,4.96224072,3635.3,3635.2,0.24761]
[1736111018026,4.549437,3635.3,3635.2,0.24761]
[1736111019125,4.96223978,3635.3,3635.2,0.24761]
[1736111019628,0.24761,3635.2,3635.1,0.24762]
[1736111020224,4.71462978,3635.3,3635.1,0.99932995]
[1736111020429,4.71462978,3635.3,3635.2,0.66421]
[1736111020628,3.652,3635.4,3635.3,0.2476]
[1736111020629,9.02928376,3635.4,3635.3,0.2476]
[1736111020822,9.27688376,3635.4,3635.3,0.2476]
[1736111021120,9.02928376,3635.4,3635.3,0.2476]
[1736111021626,4.06479147,3635.4,3635.3,0.2476]
[1736111025229,4.31239147,3635.4,3635.3,0.2476]
[1736111025429,4.06479147,3635.4,3635.3,0.2476]
[1736111025831,9.15333075,3635.4,3635.3,0.2476]
[1736111026131,5.94553075,3635.4,3635.3,0.2476]
[1736111026430,6.19313075,3635.4,3635.3,0.2476]
[1736111026930,6.19313075,3635.4,3635.3,0.4071]
[1736111027832,6.19313075,3635.4,3635.3,0.1595]
[1736111028929,11.57041451,3635.4,3635.3,0.1595]
[1736111033936,6.19313075,3635.4,3635.3,0.1595]
[1736111035338,4.31239147,3635.4,3635.3,0.1595]
[1736111035741,1.10459147,3635.4,3635.3,0.1595]
[1736111035934,4.31239147,3635.4,3635.3,0.1595]
[1736111036439,9.40093075,3635.4,3635.3,0.1595]
[1736111036941,6.19313075,3635.4,3635.3,0.1595]
[1736111037129,9.40093075,3635.4,3635.3,0.1595]
[1736111039033,14.75714126,3635.4,3635.3,0.1595]
[1736111041339,14.06534126,3635.4,3635.3,1.15882995]
[1736111041539,14.06534126,3635.4,3635.3,1.40642995]
[1736111042939,14.06534126,3635.4,3635.3,5.73691107]
[1736111042940,0.41279147,3635.4,3635.3,5.73691107]
[1736111044337,2.13900476,3635.5,3635.4,0.2476]
[1736111044943,1.46310476,3635.5,3635.4,1.24692995]
[1736111045132,0.53300476,3635.5,3635.4,6.24692995]
[1736111045339,2.13844036,3635.6,3635.5,0.24759]
[1736111045641,0.98014036,3635.6,3635.5,2.32191995]
[1736111045840,0.98014036,3635.6,3635.5,7.32191995]
[1736111045841,0.39458036,3635.6,3635.5,7.32191995]
[1736111046037,3.20850714,3635.8,3635.5,7.07432995]
[1736111046238,2.68510714,3635.8,3635.7,4.45470995]
[1736111046446,2.68510714,3635.8,3635.7,9.45470995]
[1736111046944,9.27664401,3637.0,3636.6,0.24752]
[1736111046945,6.22314177,3636.8,3636.6,0.24752]
[1736111047140,6.22314177,3636.8,3636.6,1.32252]
[1736111047441,3.01534177,3636.8,3636.6,2.07432995]
[1736111048139,3.01534177,3636.8,3636.6,2.32184995]
[1736111048341,3.01534177,3636.8,3636.6,2.07432995]
[1736111048645,0.33023463,3636.8,3636.6,2.07432995]
[1736111049144,0.33023463,3636.8,3636.6,2.23372995]
[1736111049735,3.2078,3636.9,3636.6,2.23372995]
[1736111049939,0.8375,3637.0,3636.9,0.2475]
[1736111050141,3.2078,3637.4,3637.3,0.24747]
[1736111050342,3.6198,3637.4,3637.3,1.24679995]
[1736111050840,0.412,3637.4,3637.3,1.24679995]
[1736111051643,0.412,3637.4,3637.3,2.32179995]
[1736111052841,0.24741,3638.2,3637.3,2.07432995]
[1736111053046,0.4125,3637.7,3637.6,0.24745]
[1736111055843,0.4125,3637.7,3637.5,0.24745]
[1736111056043,0.4217,3637.6,3637.5,0.24745]
[1736111056237,0.8501,3637.6,3637.5,1.32245]
[1736111056643,0.8501,3637.6,3637.5,1.075]
[1736111057751,0.8501,3637.6,3637.3,1.32246]
[1736111057947,4.0579,3637.6,3637.1,1.075]
[1736111058149,0.24747,3637.4,3637.1,1.075]
[1736111058345,4.0579,3637.6,3636.9,1.075]
[1736111058545,0.24746,3637.5,3637.1,0.24748]
[1736111058850,4.0579,3637.6,3636.9,1.075]
[1736111059052,0.24746,3637.5,3637.1,0.24748]
[1736111059747,0.24749,3637.1,3636.8,1.075]
[1736111059937,1.12119,3637.0,3636.8,1.075]
[1736111060143,0.4355,3636.9,3636.8,1.075]
[1736111064254,0.4355,3636.9,3636.8,0.2475]
[1736111064448,0.4355,3636.9,3636.6,0.1594]
[1736111064952,0.4355,3636.9,3636.8,0.2475]
[1736111065547,0.4355,3636.9,3636.6,0.1594]
[1736111065749,0.4355,3636.9,3636.7,0.24751]
[1736111068754,0.4355,3636.9,3636.6,0.1594]
[1736111068958,0.4355,3636.9,3636.8,0.2475]
[1736111073358,0.683,3636.9,3636.6,0.24751]
[1736111073854,0.4355,3636.9,3635.8,3.2078]
[1736111074057,0.24752,3636.6,3636.2,0.24754]
[1736111074463,0.66272,3636.5,3636.2,0.40694]
[1736111074663,0.4431,3636.4,3636.2,0.40694]
[1736111074854,0.4431,3636.4,3636.2,0.1594]
[1736111075060,0.4431,3636.4,3636.3,0.24754]
[1736111075554,0.4431,3636.4,3636.2,0.1594]
[1736111075757,0.4431,3636.4,3636.3,0.24754]
[1736111076653,0.24754,3636.3,3636.2,0.1594]
[1736111076855,0.24755,3636.2,3635.9,0.24756]
[1736111077052,3.2078,3636.1,3635.7,0.24757]
[1736111077261,0.24757,3635.9,3635.3,1.34770015]
[1736111077564,2.65426252,3636.2,3635.4,0.2476]
[1736111077565,3.2078,3635.7,3635.4,0.2476]
[1736111077766,0.24759,3635.5,3635.3,0.2476]
[1736111078063,0.4433,3635.4,3635.3,0.2476]
[1736111078255,0.8506,3635.4,3635.2,1.074]
[1736111078457,3.2078,3635.3,3635.2,1.074]
[1736111078658,3.4554,3635.3,3635.0,0.24762]
[1736111078855,3.4554,3635.3,3635.1,0.24762]
[1736111079252,3.4554,3635.3,3634.9,4.31733322]
[1736111079459,3.2078,3635.3,3634.9,4.31733322]
[1736111079659,3.2078,3635.3,3634.8,1.074]
[1736111079660,3.2078,3635.3,3635.1,0.24761]
[1736111080152,0.4187,3635.2,3635.1,0.24761]
[1736111091266,3.6265,3635.2,3635.1,0.24761]
[1736111095074,3.2078,3635.2,3635.1,0.24761]
[1736111095373,4.28263678,3636.5,3635.1,0.24761]
[1736111095374,0.65328,3635.7,3635.1,3.2078]
[1736111095574,0.65328,3635.7,3635.5,0.24759]
[1736111096073,0.24758,3635.6,3635.5,0.24759]
[1736111097190,0.65328,3635.7,3635.5,0.24759]
[1736111099691,0.4057,3635.7,3635.0,2.21096252]
[1736111100084,0.65328,3635.7,3635.5,0.24759]
[1736111101891,0.65328,3635.7,3635.6,0.24758]
[1736111102293,3.6569,3635.8,3635.6,2.21096252]
[1736111102487,3.2078,3635.8,3635.7,0.24758]
[1736111104087,3.6443,3636.2,3635.6,2.21096252]
[1736111104290,3.6443,3636.2,3636.0,0.24756]
[1736111105294,3.6443,3636.2,3636.1,0.24755]
[1736111105592,3.6443,3636.2,3636.0,0.24755]
[1736111106389,3.6443,3636.2,3635.7,0.24758]
[1736111106591,3.6443,3636.2,3636.0,0.24755]
[1736111106983,3.6443,3636.2,3636.1,0.24755]
[1736111109697,3.89185,3636.2,3636.0,1.074]
[1736111109895,0.24755,3636.1,3636.0,1.074]
[1736111110788,3.6443,3636.2,3635.3,5.41876252]
[1736111110987,3.2078,3635.8,3635.5,0.24759]
[1736111111188,0.67118,3635.7,3635.5,0.24759]
[1736111111494,0.441,3635.6,3635.5,0.24759]
[1736111113998,0.441,3635.6,3635.3,2.21096252]
[1736111114191,0.441,3635.6,3635.5,0.24759]
[1736111115502,0.68859,3635.6,3635.4,0.24759]
[1736111115799,0.441,3635.6,3635.4,0.24759]
[1736111117197,0.441,3635.6,3635.5,0.24759]
[1736111117706,0.441,3635.6,3635.0,2.21096252]
[1736111117994,0.441,3635.6,3635.4,0.24759]
[1736111118901,0.441,3635.6,3635.0,2.21096252]
[1736111119103,0.441,3635.6,3635.5,0.24759]
[1736111125800,0.441,3635.6,3635.0,6.52829574]
[1736111126006,0.441,3635.6,3635.0,4.31733322]
[1736111126304,0.2476,3635.5,3635.0,5.39133322]
[1736111126505,0.2476,3635.4,3635.3,0.2476]
[1736111127708,3.201952,3635.5,3635.0,1.074]
[1736111128007,3.449542,3635.5,3635.4,0.2476]
[1736111129606,0.24759,3635.5,3635.4,0.2476]
[1736111132616,3.890542,3635.6,3635.0,3.28496252]
[1736111133012,3.201952,3635.5,3635.4,0.24759]
[1736111133710,3.449542,3635.5,3635.4,0.24759]
[1736111135214,3.201952,3635.5,3635.4,0.24759]
[1736111136014,3.449542,3635.5,3635.4,0.24759]
[1736111137822,3.61473763,3635.5,3635.0,2.21096252]
[1736111138017,3.86232763,3635.5,3635.4,0.2476]
[1736111140224,3.61473763,3635.5,3635.4,0.2476]
[1736111141821,3.61473763,3635.5,3635.4,0.6548]
[1736111142129,3.201952,3635.6,3635.5,0.24759]
[1736111142325,3.201952,3635.6,3635.5,3.53255252]
[1736111143229,6.409752,3636.1,3635.5,3.28496252]
[1736111143424,0.4321,3635.7,3635.6,0.24758]
[1736111153846,0.4321,3635.7,3635.5,0.24759]
[1736111154141,0.8399,3635.6,3635.5,0.24759]
[1736111158148,4.041852,3635.6,3635.5,0.24759]
[1736111159342,0.8399,3635.6,3635.5,0.24759]
[1736111161647,4.041852,3635.6,3635.5,0.24759]
[1736111162746,4.041852,3635.6,3635.3,0.2476]
[1736111163042,0.24759,3635.5,3635.3,0.2476]
[1736111163243,0.24759,3635.5,3635.2,4.56493322]
[1736111163549,0.2476,3635.4,3635.2,4.56493322]
[1736111164241,4.454621,3635.6,3635.2,4.31733322]
[1736111164448,4.454621,3635.6,3635.0,6.47599983]
[1736111164449,3.201952,3635.3,3634.9,4.31733322]
[1736111165045,3.201952,3635.3,3635.2,0.24761]
[1736111165644,3.614721,3635.3,3635.2,0.24761]
[1736111166951,3.201952,3635.3,3635.2,0.24761]
[1736111169250,3.201952,3635.3,3634.9,4.31733322]
[1736111169653,3.201952,3635.3,3635.2,0.24761]
[1736111173851,4.20131988,3635.4,3635.3,0.2476]
[1736111174043,3.201952,3635.4,3635.3,0.2476]
[1736111178949,6.409752,3635.4,3635.3,0.2476]
[1736111180356,6.82253476,3635.4,3635.3,0.2476]
[1736111185157,7.82190264,3635.4,3635.3,0.2476]
[1736111190660,4.61995064,3635.4,3635.3,0.2476]
[1736111191363,4.61995064,3635.4,3634.9,4.31733322]
[1736111191558,0.99936788,3635.0,3634.9,4.31733322]
[1736111191763,0.99936788,3635.0,3634.9,4.56496322]
[1736111192255,0.847,3635.1,3634.9,4.31733322]
[1736111192461,0.847,3635.1,3635.0,0.24763]
[1736111192858,4.06319205,3635.1,3635.0,0.24763]
[1736111194068,4.47599604,3635.1,3635.0,0.24763]
[1736111197669,1.25980399,3635.1,3635.0,0.24763]
[1736111198267,0.41280399,3635.1,3635.0,3.45543]
[1736111199170,2.14494585,3635.1,3635.0,3.45543]
[1736111199769,2.14494585,3635.1,3635.0,0.24763]
[1736111200268,2.14494585,3635.1,3635.0,4.56496322]
[1736111202365,3.21741878,3635.1,3635.0,0.24763]
[1736111208773,3.21741878,3635.1,3635.0,4.56496322]
[1736111210076,3.21741878,3635.1,3635.0,0.24763]
[1736111211377,3.21741878,3635.1,3634.9,8.54936771]
[1736111211378,3.21741878,3635.2,3635.1,0.24762]
[1736111211875,3.21741878,3635.2,3635.1,1.24698788]
[1736111212272,4.69544077,3635.3,3635.2,0.24761]
[1736111213576,4.28263678,3635.3,3635.2,0.24761]
[1736111214972,4.69544077,3635.4,3635.3,0.2476]
[1736111215179,4.69544077,3635.4,3635.3,1.24696788]
[1736111215378,4.69544077,3635.4,3635.3,0.2476]
[1736111215573,5.69480865,3635.4,3635.3,0.2476]
[1736111216168,5.28200466,3635.4,3635.3,0.2476]
[1736111216573,5.52960466,3635.4,3635.2,0.24761]
[1736111216777,5.52960466,3635.4,3635.3,0.2476]
[1736111217175,1.24696788,3635.4,3635.3,0.2476]
[1736111218081,6.6221242,3635.4,3635.3,0.2476]
[1736111218979,6.3745242,3635.4,3635.3,0.2476]
[1736111219878,6.3745242,3635.4,3635.0,4.33079327]
[1736111220182,1.24698788,3635.2,3635.1,0.24762]
[1736111220374,0.24762,3635.1,3635.0,4.57841327]
[1736111220575,0.66412,3635.1,3635.0,4.57841327]
[1736111221380,0.4165,3635.1,3635.0,4.57841327]
[1736111221980,5.12500643,3635.1,3635.0,0.24762]
[1736111223177,0.82928848,3635.1,3635.0,0.24762]
[1736111224380,0.82928848,3635.1,3635.0,6.72361983]
[1736111224381,0.4165,3635.1,3635.0,6.72361983]
[1736111225671,3.63985109,3635.2,3635.0,6.47599983]
[1736111225871,3.63985109,3635.2,3635.1,1.24698788]
[1736111226784,3.63985109,3635.2,3635.1,5.577242]
[1736111230985,3.22035109,3635.2,3635.1,5.577242]
[1736111232289,2.14825724,3635.5,3635.4,0.2476]
[1736111232487,2.14825724,3635.5,3635.4,1.24696788]
[1736111233480,2.14825724,3635.6,3635.5,0.24759]
[1736111233688,2.14825724,3635.6,3635.5,1.24695788]
[1736111238491,2.99595724,3635.7,3635.6,0.24758]
[1736111242888,7.20312512,3635.7,3635.4,4.3266951]
[1736111243086,0.99936788,3635.5,3635.4,4.3266951]
[1736111243491,0.99936788,3635.5,3635.1,0.99936788]
[1736111243687,0.4307,3635.4,3635.1,0.99936788]
[1736111243892,0.4307,3635.4,3635.3,0.2476]
[1736111244486,0.4307,3635.4,3635.0,4.3266951]
[1736111244688,0.99936788,3635.1,3635.0,4.3266951]
[1736111244987,0.99936788,3635.1,3634.9,4.5743251]
[1736111245183,0.4439,3635.0,3634.9,4.3266951]
[1736111245389,0.8894,3635.0,3634.9,4.5743251]
[1736111246396,4.10975109,3635.0,3634.9,0.24763]
[1736111247590,3.03717657,3635.0,3634.9,0.24763]
[1736111248682,0.8894,3635.0,3634.9,0.24763]
[1736111252492,2.14777657,3635.2,3635.1,0.24762]
[1736111252697,2.14777657,3635.2,3635.1,4.45478788]
[1736111253809,0.4307,3635.4,3635.1,8.53386298]
[1736111254004,0.4307,3635.4,3635.3,1.24696788]
[1736111255006,3.00947657,3635.5,3635.3,0.99936788]
[1736111255305,3.00947657,3635.5,3635.4,0.2476]
[1736111256215,0.8617,3635.5,3635.4,4.5742951]
[1736111256807,0.4283,3635.5,3635.4,4.5742951]
[1736111262419,0.4103,3635.7,3635.6,0.24758]
[1736111262619,0.4103,3635.7,3635.6,1.24694788]
[1736111263013,2.58827657,3635.8,3635.7,0.24758]
[1736111263613,2.14777657,3635.8,3635.7,0.24758]
[1736111264320,0.439,3635.9,3635.8,0.24757]
[1736111264522,0.439,3635.9,3635.8,1.24693788]
[1736111268314,0.8536,3636.0,3635.8,0.99936788]
[1736111268518,2.56527657,3636.2,3636.1,0.24755]
[1736111268814,2.56527657,3636.2,3636.1,1.24691788]
[1736111269417,0.4175,3636.2,3636.1,1.24691788]
[1736111270916,0.4128,3636.6,3636.1,5.32606298]
[1736111271223,0.4128,3636.6,3636.5,1.24688788]
[1736111272515,2.97887657,3636.7,3636.5,1.24688788]
[1736111272516,0.4175,3636.7,3636.6,0.24752]
[1736111272723,0.4175,3636.7,3636.6,1.32052]
[1736111279125,0.4175,3636.7,3636.6,0.24752]
[1736111279330,0.4175,3636.7,3636.6,1.32052]
[1736111281225,0.4175,3636.7,3636.6,3.53296187]
[1736111282526,0.4136,3637.0,3636.9,0.2475]
[1736111282726,0.4136,3637.0,3636.9,2.45994187]
[1736111284329,0.4136,3637.0,3636.9,0.2475]
[1736111284521,0.4136,3637.0,3636.6,4.2808]
[1736111284830,0.4136,3637.0,3636.9,0.2475]
[1736111285532,0.4136,3637.0,3636.6,3.2078]
[1736111285730,0.4192,3636.9,3636.8,0.2475]
[1736111285927,0.4192,3636.9,3636.7,0.3974]
[1736111286735,0.4192,3636.9,3636.8,0.2475]
[1736111292325,0.41,3637.2,3637.1,0.24748]
[1736111292728,3.00417657,3637.3,3637.2,0.24748]
[1736111292930,2.14777657,3637.3,3637.2,5.66772187]
[1736111293137,1.67913657,3637.3,3637.2,5.66772187]
[1736111293532,1.19895657,3637.3,3637.2,5.66772187]
[1736111293932,1.2888,3637.9,3637.2,5.42024187]
[1736111294230,1.2888,3637.9,3637.8,0.24743]
[1736111294432,1.2888,3637.9,3637.8,1.32043]
[1736111299832,0.4484,3637.9,3637.8,1.32043]
[1736111301426,0.4484,3637.9,3637.8,0.24743]
[1736111301834,0.24744,3637.8,3637.4,0.24746]
[1736111302037,3.90363,3637.9,3637.5,0.24745]
[1736111302237,0.4416,3637.7,3637.5,0.24745]
[1736111302432,0.4394,3637.6,3637.5,0.24745]
[1736111302641,0.4394,3637.6,3637.1,4.3266951]
[1736111302939,3.2078,3637.4,3637.2,0.24747]
[1736111303434,3.2078,3637.4,3636.8,4.2798]
[1736111303628,0.24748,3637.2,3636.9,0.24749]
[1736111303833,0.4138,3637.1,3637.0,0.24749]
[1736111308536,0.8555,3637.1,3637.0,0.24749]
[1736111314638,0.4417,3637.1,3637.0,0.24749]
[1736111314948,3.2078,3637.2,3637.1,0.24748]
[1736111315143,3.2078,3637.2,3637.1,2.45992187]
[1736111315541,3.22035109,3637.4,3637.3,0.24747]
[1736111315742,3.22035109,3637.4,3637.3,1.31947]
[1736111316938,0.4394,3637.6,3637.5,0.24745]
[1736111317647,0.4394,3637.6,3637.5,2.45989187]
[1736111320851,0.4324,3637.7,3637.6,0.24745]
[1736111322954,3.6358,3638.0,3637.9,0.24743]
[1736111323255,3.2078,3638.0,3637.9,0.24743]
[1736111323456,3.22035109,3638.2,3638.1,0.24741]
[1736111323647,3.22035109,3638.2,3638.1,3.53185187]
[1736111324453,3.22035109,3638.5,3638.4,0.24739]
[1736111324849,3.22035109,3638.5,3638.4,2.45983187]
[1736111325752,1.2824,3638.6,3638.5,0.24739]
[1736111328857,0.8623,3638.6,3638.5,0.24739]
[1736111329053,0.433,3638.6,3638.5,0.24739]
[1736111329554,0.433,3638.6,3638.4,2.21244187]
[1736111329555,3.2078,3638.7,3638.6,0.24738]
[1736111331357,1.2923,3639.0,3638.9,0.24736]
[1736111333547,1.2923,3639.0,3638.4,2.21244187]
[1736111333753,1.2923,3639.0,3638.9,0.24736]
[1736111334553,0.24736,3638.9,3638.7,0.24737]
[1736111336555,1.2923,3639.0,3638.8,0.24736]
[1736111336556,1.53966,3639.0,3638.8,0.24736]
[1736111336962,1.53966,3639.0,3638.5,1.072]
[1736111336963,1.2923,3639.0,3638.5,1.072]
[1736111337155,1.2923,3639.0,3638.9,0.24736]
[1736111337558,1.2923,3639.0,3638.8,0.24736]
[1736111338058,1.2923,3639.0,3638.5,1.072]
[1736111338059,1.2923,3639.0,3638.9,0.24736]
[1736111339859,1.53965,3639.0,3638.9,0.24736]
[1736111340064,1.53965,3639.0,3638.8,0.24736]
[1736111340457,1.2923,3639.0,3638.8,0.24736]
[1736111340763,1.53966,3639.0,3638.8,0.24736]
[1736111341164,0.24737,3638.8,3638.6,0.24737]
[1736111341963,3.45517,3638.8,3638.6,0.24737]
[1736111343158,3.45517,3638.8,3638.5,1.072]
[1736111343364,3.45517,3638.8,3638.7,0.24737]
[1736111343575,3.2078,3638.8,3638.7,0.24737]
[1736111343762,3.2078,3638.8,3638.7,2.45981187]
[1736111345365,4.0857,3639.4,3639.3,0.24733]
[1736111346469,4.0857,3639.4,3639.1,2.21244187]
[1736111346665,4.0857,3639.4,3639.3,0.24733]
[1736111347267,4.33303,3639.4,3639.2,0.24734]
[1736111347466,4.33303,3639.4,3639.3,0.24733]
[1736111347969,4.0857,3639.4,3639.3,0.24733]
[1736111349258,0.24733,3639.3,3639.2,0.24734]
[1736111349667,0.24733,3639.3,3638.8,2.66074187]
[1736111349860,0.24735,3639.1,3638.9,0.24735]
[1736111350059,0.4206,3639.0,3638.9,0.24735]
[1736111358484,0.4206,3639.0,3638.9,0.69405]
[1736111360180,3.2078,3639.1,3639.0,0.24735]
[1736111361683,0.8779,3639.4,3639.3,0.24733]
[1736111363286,0.8779,3639.4,3639.1,2.21244187]
[1736111363287,6.42078424,3639.5,3639.4,0.24733]
[1736111363585,6.42078424,3639.5,3639.4,2.45977187]
[1736111365183,3.2078,3639.5,3639.4,2.45977187]
[1736111367191,4.04458424,3639.8,3639.7,0.24731]
[1736111367489,3.21298424,3639.8,3639.7,3.53075187]
[1736111368385,3.21298424,3639.9,3639.8,0.2473]
[1736111368584,3.21298424,3639.9,3639.8,0.6938]
[1736111370195,5.35497374,3640.3,3639.8,0.6938]
[1736111370196,3.21298424,3640.3,3640.2,0.24727]
[1736111371591,7.25158424,3640.9,3640.7,0.24724]
[1736111372284,7.25158424,3640.9,3640.6,1.071]
[1736111372285,7.25158424,3640.9,3640.6,1.31824]
[1736111372484,7.25158424,3640.9,3640.6,1.071]
[1736111372689,4.28583,3640.9,3640.6,1.071]
[1736111372891,4.28583,3640.9,3640.6,1.31824]
[1736111373087,4.28583,3640.9,3640.8,0.24723]
[1736111373088,4.0386,3640.9,3640.8,0.24723]
[1736111373280,4.0386,3640.9,3640.7,2.21244187]
[1736111374082,0.24725,3640.5,3640.1,2.45971187]
[1736111374287,1.11576,3640.4,3640.0,1.071]
[1736111374485,1.11576,3640.4,3640.1,0.24727]
[1736111374893,0.8685,3640.4,3640.2,0.24727]
[1736111375190,0.8685,3640.4,3640.3,0.24726]
[1736111378086,0.8685,3640.4,3639.7,4.0537]
[1736111378286,0.24729,3640.0,3639.8,0.2473]
[1736111378590,0.4227,3639.9,3639.5,2.21244187]
[1736111378790,0.6552,3639.8,3639.6,0.24731]
[1736111378987,3.2078,3639.7,3639.6,0.24731]
[1736111379389,3.2078,3639.7,3639.2,3.28344187]
[1736111379592,0.24732,3639.5,3639.2,2.45977187]
[1736111379794,0.44,3639.6,3639.2,2.45977187]
[1736111379795,0.44,3639.6,3639.2,2.21244187]
[1736111380101,0.44,3639.6,3639.5,2.45976187]
[1736111381789,0.44,3639.6,3638.9,2.21244187]
[1736111381990,0.44,3639.6,3639.0,1.071]
[1736111382395,0.24733,3639.5,3639.1,0.24735]
[1736111382589,0.24733,3639.5,3639.2,0.24733]
[1736111382787,3.2078,3639.3,3639.0,1.071]
[1736111382995,3.2078,3639.3,3638.9,2.21244187]
[1736111382996,0.24735,3639.1,3638.9,0.24735]
[1736111383901,1.11574,3639.2,3638.9,0.24735]
[1736111384696,0.8684,3639.2,3638.8,1.071]
[1736111384899,0.8684,3639.2,3638.9,0.24736]
[1736111385201,0.8684,3639.2,3639.0,0.24735]
[1736111385601,4.0762,3639.2,3639.0,0.24735]
[1736111386000,4.0762,3639.2,3638.6,2.21244187]
[1736111386204,4.0762,3639.2,3639.1,0.24735]
[1736111388805,4.0762,3639.2,3638.4,2.21244187]
[1736111389004,0.24735,3639.0,3638.6,1.071]
[1736111389311,0.4349,3638.9,3638.8,0.24736]
[1736111389698,4.0762,3639.2,3638.7,2.21244187]
[1736111389899,4.0762,3639.2,3639.1,2.45979187]
[1736111391005,4.0762,3639.2,3639.1,2.21244187]
[1736111391209,4.0762,3639.2,3639.1,0.24735]
[1736111392294,4.0762,3639.2,3639.0,0.24735]
[1736111393903,4.0762,3639.2,3638.8,3.10314187]
[1736111393904,4.0762,3639.2,3639.1,0.24735]
[1736111394799,4.32354,3639.2,3638.8,3.10314187]